fUSD/lending_fUSD_20240813
["ID","MTS","AMOUNT","RATE_DAILY","PERIOD"]
[334761501,1723537841399,-501.1942979,0.00014001,2]
[334761503,1723537841408,-511.6508691,0.00014001,2]
[334761505,1723537841418,-502.35535177,0.00014001,2]
[334761507,1723537841428,-506.24652141,0.00014001,2]
[334761509,1723537841437,-505.51988115,0.00014001,2]
[334761511,1723537841447,-503.54904471,0.00014001,2]
[334761513,1723537841457,-505.62147019,0.00014001,2]
[334761515,1723537841467,-500.67356869,0.00014001,2]
[334761517,1723537841478,-505.35500578,0.00014001,2]
[334761519,1723537841487,-503.96361352,0.00014001,2]
[334761521,1723537841496,-502.60974017,0.00014001,2]
[334761523,1723537841506,-502.39671986,0.00014001,2]
[334761525,1723537841516,-500.0,0.00014001,2]
[334761527,1723537841525,-502.84498651,0.00014001,2]
[334761529,1723537841535,-511.51448977,0.00014001,2]
[334761531,1723537841545,-500.0,0.00014001,2]
[334761533,1723537841556,-291.99465467,0.00014001,2]
[334761535,1723537841565,-501.62528601,0.00014001,2]
[334761537,1723537841574,-503.12216758,0.00014001,2]
[334761539,1723537841583,-513.94335453,0.00014001,2]
[334761541,1723537841592,-500.0,0.00014001,2]
[334761543,1723537841602,-502.2119401,0.00014001,2]
[334761545,1723537841611,-494.14019702,0.00014001,2]
[334761547,1723537841621,-503.12733794,0.00014001,2]
[334761549,1723537841630,-507.41317387,0.00014001,2]
[334761551,1723537841639,-502.92448396,0.00014001,2]
[334761553,1723537841648,-500.0,0.00014001,2]
[334761554,1723537841658,-505.5248055,0.00014001,2]
[334761556,1723537841667,-511.88263006,0.00014001,2]
[334761558,1723537841678,-500.0,0.00014001,2]
[334761560,1723537841687,-500.0,0.00014001,2]
[334761562,1723537841696,-613.69528256,0.00014001,2]
[334761564,1723537841706,-568.39,0.00014001,2]
[334761566,1723537841715,-502.21802477,0.00014001,2]
[334761568,1723537841724,-503.77226537,0.00014001,2]
[334761570,1723537841734,-500.0,0.00014001,2]
[334761572,1723537841743,-525.65758828,0.00014001,2]
[334761574,1723537841753,-500.0,0.00014001,2]
[334761576,1723537841763,-500.0,0.00014001,2]
[334761578,1723537841772,-500.0,0.00014001,2]
[334761580,1723537841782,-508.44709333,0.00014001,2]
[334761582,1723537841792,-500.0,0.00014001,2]
[334761584,1723537841802,-500.0,0.00014001,2]
[334761586,1723537841811,-500.0,0.00014001,2]
[334761588,1723537841821,-500.0,0.00014001,2]
[334761590,1723537841831,-500.0,0.00014001,2]
[334761592,1723537841840,-500.0,0.00014001,2]
[334761594,1723537841850,-500.0,0.00014001,2]
[334761596,1723537841860,-500.0,0.00014001,2]
[334761598,1723537841869,-500.0,0.00014001,2]
[334761600,1723537841879,-500.0,0.00014001,2]
[334761602,1723537841889,-500.0,0.00014001,2]
[334761604,1723537841898,-150.0,0.00014001,2]
[334761606,1723537841907,-500.0,0.00014001,2]
[334761608,1723537841917,-500.0,0.00014001,2]
[334761610,1723537841927,-5000.0,0.00014001,2]
[334761612,1723537841936,-500.0,0.00014001,2]
[334761614,1723537841945,-500.0,0.00014001,2]
[334761616,1723537841955,-500.0,0.00014001,2]
[334761618,1723537841964,-500.0,0.00014001,2]
[334761620,1723537841973,-788.65,0.00014001,2]
[334761622,1723537841983,-500.0,0.00014001,2]
[334761624,1723537841993,-502.32687301,0.00014001,2]
[334761626,1723537842003,-501.19955005,0.00014001,2]
[334761628,1723537842012,-500.0,0.00014001,2]
[334761630,1723537842021,-500.0,0.00014001,2]
[334761632,1723537842030,-513.23433833,0.00014001,2]
[334761634,1723537842040,-546.83834329,0.00014086,2]
[334761636,1723537842049,-901.76998133,0.00014145,2]
[334761638,1723537842059,-310.83927334,0.00014164,2]
[334761640,1723537842068,-231.22919491,0.00014165,2]
[334761641,1723537842078,-504.14023957,0.00014235,2]
[334761643,1723537842087,-507.14088072,0.00014235,2]
[334761645,1723537842096,-500.0,0.00014235,2]
[334761648,1723537842106,-502.11584622,0.00014235,2]
[334761649,1723537842116,-503.49432417,0.00014235,2]
[334761651,1723537842125,-512.51245135,0.00014235,2]
[334761653,1723537842134,-500.0,0.00014235,2]
[334761655,1723537842144,-500.0,0.00014235,2]
[334761657,1723537842153,-502.8005808,0.00014235,2]
[334761659,1723537842162,-504.14704719,0.00014235,2]
[334761661,1723537842172,-509.27801451,0.00014235,2]
[334761662,1723537842182,-503.37996642,0.00014235,2]
[334761665,1723537842191,-503.86355659,0.00014235,2]
[334761667,1723537842201,-505.99317485,0.00014235,2]
[334761669,1723537842210,-538.45863435,0.00014235,2]
[334761670,1723537842219,-503.70759216,0.00014235,2]
[334761672,1723537842228,-513.56681645,0.00014235,2]
[334761674,1723537842237,-565.223089,0.00014235,2]
[334761676,1723537842246,-506.64144779,0.00014235,2]
[334761678,1723537842255,-504.65072394,0.00014235,2]
[334761680,1723537842264,-495.50071618,0.00014235,2]
[334761682,1723537842274,-508.60782792,0.00014235,2]
[334761684,1723537842283,-500.0,0.00014235,2]
[334761697,1723537842451,-38672.3752757,0.00014236,3]
[334761699,1723537842460,-500.0,0.00014243,2]
[334761701,1723537842469,-500.0,0.00014243,2]
[334761702,1723537842479,-500.0,0.00014243,2]
[334761704,1723537842488,-1078.52,0.00014243,2]
[334761706,1723537842497,-255.64237379,0.00014243,2]
[334761707,1723537842506,-155.78531321,0.00014243,2]
[334761709,1723537842515,-463.45129347,0.00014243,2]
[334761711,1723537842525,-500.0,0.00014243,2]
[334761713,1723537842535,-500.0,0.00014243,2]
[334761715,1723537842544,-362.53488019,0.00014243,2]
[334761716,1723537842554,-500.0,0.00014243,2]
[334761718,1723537842563,-537.83735443,0.00014243,2]
[334761720,1723537842572,-500.0,0.00014243,2]
[334761721,1723537842581,-500.0,0.00014243,2]
[334761723,1723537842591,-500.0,0.00014243,2]
[334761725,1723537842600,-500.0,0.00014243,2]
[334761727,1723537842609,-500.0,0.00014243,2]
[334761729,1723537842619,-500.0,0.00014243,2]
[334761731,1723537842628,-446.29298263,0.00014243,2]
[334761732,1723537842637,-500.0,0.00014243,2]
[334761734,1723537842647,-500.0,0.00014243,2]
[334761736,1723537842656,-619.04,0.00014243,2]
[334761738,1723537842666,-500.0,0.00014243,2]
[334761740,1723537842675,-500.0,0.00014243,2]
[334761741,1723537842684,-500.0,0.00014244,2]
[334761743,1723537842694,-319.05281036,0.00014244,2]
[334761745,1723537842703,-500.0,0.00014244,2]
[334761746,1723537842712,-500.0,0.00014244,2]
[334761748,1723537842722,-500.0,0.00014244,2]
[334761750,1723537842731,-500.0,0.00014244,2]
[334761752,1723537842740,-500.0,0.00014244,2]
[334761754,1723537842750,-422.09617002,0.00014244,2]
[334761756,1723537842760,-360.41861642,0.00014244,2]
[334761758,1723537842770,-500.0,0.00014244,2]
[334761759,1723537842780,-500.0,0.00014244,2]
[334761761,1723537842789,-500.0,0.00014244,2]
[334761763,1723537842799,-160.25557155,0.00014244,2]
[334761765,1723537842810,-170.30970466,0.00014244,2]
[334761766,1723537842820,-500.0,0.00014244,2]
[334761768,1723537842830,-500.0,0.00014244,2]
[334761770,1723537842840,-507.74669422,0.00014244,2]
[334761772,1723537842850,-500.0,0.00014244,2]
[334761774,1723537842859,-237.30707998,0.00014244,2]
[334761776,1723537842869,-205.95649963,0.00014244,2]
[334761777,1723537842879,-1425.34,0.00014244,2]
[334761779,1723537842889,-500.0,0.00014244,2]
[334761781,1723537842898,-500.0,0.00014245,2]
[334761783,1723537842908,-20000.0,0.00014245,2]
[334761785,1723537842918,-517.80774184,0.00014245,2]
[334761787,1723537842927,-500.0,0.00014245,2]
[334761789,1723537842937,-500.0,0.00014245,2]
[334761790,1723537842946,-500.93555673,0.00014245,2]
[334761792,1723537842956,-500.0,0.00014245,2]
[334761794,1723537842965,-502.22053271,0.00014245,2]
[334761796,1723537842975,-500.0,0.00014245,2]
[334761798,1723537842985,-505.8428205,0.00014245,2]
[334761800,1723537842994,-508.54591375,0.00014245,2]
[334761801,1723537843004,-504.07965789,0.00014245,2]
[334761803,1723537843013,-500.0,0.00014245,2]
[334761805,1723537843023,-518.68986107,0.00014245,2]
[334761807,1723537843032,-527.68697999,0.00014245,2]
[334761809,1723537843041,-507.09103228,0.00014245,2]
[334761811,1723537843051,-500.0,0.00014245,2]
[334761812,1723537843062,-507.41617026,0.00014245,2]
[334761814,1723537843072,-502.26500359,0.00014245,2]
[334761816,1723537843082,-507.51425965,0.00014245,2]
[334761818,1723537843091,-609.78212816,0.00014245,2]
[334761820,1723537843101,-504.58787796,0.00014245,2]
[334761822,1723537843110,-506.36244482,0.00014245,2]
[334761823,1723537843119,-278.39680347,0.00014245,2]
[334761825,1723537843129,-500.0,0.00014245,2]
[334761828,1723537843138,-500.0,0.00014245,2]
[334761830,1723537843147,-505.00872331,0.00014245,2]
[334761832,1723537843156,-500.0,0.00014245,2]
[334761833,1723537843166,-502.37202324,0.00014245,2]
[334761835,1723537843175,-500.0,0.00014245,2]
[334761837,1723537843185,-500.0,0.00014245,2]
[334761839,1723537843195,-503.00809499,0.00014245,2]
[334761841,1723537843204,-509.1947676,0.00014245,2]
[334761843,1723537843214,-514.54728994,0.00014245,2]
[334761845,1723537843223,-500.0,0.00014245,2]
[334761846,1723537843233,-508.24367943,0.00014245,2]
[334761848,1723537843243,-518.20731037,0.00014245,2]
[334761850,1723537843252,-500.0,0.00014245,2]
[334761852,1723537843262,-508.58999717,0.00014245,2]
[334761854,1723537843271,-506.54454309,0.00014245,2]
[334761856,1723537843280,-551.56134885,0.00014245,2]
[334761858,1723537843291,-500.0,0.00014245,2]
[334761860,1723537843303,-500.0,0.00014245,2]
[334761861,1723537843312,-500.0,0.00014245,2]
[334761863,1723537843322,-1004.02436155,0.00014245,2]
[334761865,1723537843332,-506.52614854,0.00014245,2]
[334761867,1723537843343,-505.09384864,0.00014245,2]
[334761869,1723537843352,-500.0,0.00014245,2]
[334761871,1723537843362,-502.30835381,0.00014245,2]
[334761873,1723537843373,-510.65286904,0.00014245,2]
[334761875,1723537843382,-523.4106194,0.00014245,2]
[334761876,1723537843391,-500.0,0.00014245,2]
[334761878,1723537843401,-601.54347611,0.00014245,2]
[334761880,1723537843410,-505.47668271,0.00014245,2]
[334761882,1723537843420,-497.85485002,0.00014245,2]
[334761884,1723537843428,-513.84260242,0.00014245,2]
[334761886,1723537843438,-556.99216909,0.00014245,2]
[334761887,1723537843447,-513.43580745,0.00014245,2]
[334761889,1723537843456,-512.4383289,0.00014245,2]
[334761891,1723537843466,-512.848197,0.00014245,2]
[334761893,1723537843476,-500.0,0.00014245,2]
[334761895,1723537843485,-505.7371881,0.00014245,2]
[334761897,1723537843495,-513.40398666,0.00014245,2]
[334761899,1723537843505,-509.04081008,0.00014245,2]
[334761900,1723537843514,-521.00521393,0.00014245,2]
[334761902,1723537843523,-525.69320803,0.00014245,2]
[334761904,1723537843533,-503.36958721,0.00014245,2]
[334761906,1723537843542,-500.0,0.00014245,2]
[334761908,1723537843551,-500.0,0.00014245,2]
[334761910,1723537843562,-500.0,0.00014245,2]
[334761911,1723537843571,-507.25426718,0.00014245,2]
[334761913,1723537843580,-500.0,0.00014245,2]
[334761915,1723537843589,-515.37503503,0.00014245,2]
[334761917,1723537843599,-504.66533534,0.00014245,2]
[334761919,1723537843608,-512.5013909,0.00014245,2]
[334761921,1723537843618,-516.50854588,0.00014245,2]
[334761922,1723537843627,-510.42230303,0.00014245,2]
[334761924,1723537843636,-519.03566761,0.00014245,2]
[334761926,1723537843646,-516.68602653,0.00014245,2]
[334761928,1723537843655,-510.12321686,0.00014245,2]
[334761930,1723537843664,-511.26724024,0.00014245,2]
[334761932,1723537843674,-500.0,0.00014245,2]
[334761933,1723537843683,-621.2345343,0.00014245,2]
[334761935,1723537843693,-500.0,0.00014245,2]
[334761937,1723537843702,-506.79543734,0.00014245,2]
[334761939,1723537843711,-409.33353869,0.00014245,2]
[334761941,1723537843721,-500.0,0.00014245,2]
[334761943,1723537843730,-500.0,0.00014245,2]
[334761944,1723537843739,-435.04835647,0.00014245,2]
[334761946,1723537843749,-577.32,0.00014245,2]
[334761948,1723537843758,-500.0,0.00014246,2]
[334761950,1723537843768,-500.0,0.00014246,2]
[334761952,1723537843778,-501.70467655,0.00014246,2]
[334761954,1723537843788,-500.0,0.00014246,2]
[334761956,1723537843797,-500.0,0.00014246,2]
[334761959,1723537843809,-500.0,0.00014246,2]
[334761962,1723537843819,-500.0,0.00014246,2]
[334761964,1723537843830,-500.0,0.00014246,2]
[334761966,1723537843840,-500.31675764,0.00014246,2]
[334761968,1723537843849,-401.41713928,0.00014246,2]
[334761970,1723537843859,-500.0,0.00014246,2]
[334761971,1723537843869,-500.0,0.00014246,2]
[334761973,1723537843878,-300.0,0.00014246,2]
[334761974,1723537843888,-500.0,0.00014246,2]
[334761975,1723537843897,-318.98664193,0.00014246,2]
[334761976,1723537843907,-499.4729165,0.00014246,2]
[334761977,1723537843917,-500.0,0.00014246,2]
[334761978,1723537843926,-506.41147702,0.00014246,2]
[334761979,1723537843936,-502.46030922,0.00014246,2]
[334761980,1723537843945,-502.54468502,0.00014246,2]
[334761981,1723537843955,-500.0,0.00014246,2]
[334761982,1723537843964,-238.96383948,0.00014246,2]
[334761983,1723537843974,-500.0,0.00014246,2]
[334761984,1723537843983,-500.0,0.00014246,2]
[334761985,1723537843993,-502.04443189,0.00014246,2]
[334761986,1723537844003,-500.0,0.00014246,2]
[334761987,1723537844014,-614.71571048,0.00014246,2]
[334761988,1723537844023,-502.71285686,0.00014246,2]
[334761989,1723537844032,-500.0,0.00014246,2]
[334761990,1723537844042,-503.30604315,0.00014246,2]
[334761991,1723537844051,-507.74664769,0.00014246,2]
[334761993,1723537844063,-502.85604799,0.00014246,2]
[334761994,1723537844072,-492.82516703,0.00014246,2]
[334761996,1723537844082,-504.79598991,0.00014246,2]
[334761998,1723537844091,-500.0,0.00014246,2]
[334762000,1723537844100,-500.0,0.00014246,2]
[334762002,1723537844110,-500.0,0.00014246,2]
[334762004,1723537844119,-503.20653972,0.00014246,2]
[334762006,1723537844128,-506.50306472,0.00014246,2]
[334762008,1723537844138,-503.09424957,0.00014246,2]
[334762010,1723537844147,-503.12331736,0.00014246,2]
[334762012,1723537844156,-500.0,0.00014246,2]
[334762014,1723537844166,-503.16618339,0.00014246,2]
[334762016,1723537844176,-183.39927672,0.00014246,2]
[334762018,1723537844185,-500.0,0.00014246,2]
[334762020,1723537844194,-498.45752207,0.00014246,2]
[334762022,1723537844204,-500.0,0.00014246,2]
[334762024,1723537844213,-501.33343584,0.00014246,2]
[334762026,1723537844222,-500.0,0.00014246,2]
[334762028,1723537844232,-385.0490701,0.00014246,2]
[334762030,1723537844241,-500.0,0.00014246,2]
[334762032,1723537844251,-503.17221588,0.00014246,2]
[334762034,1723537844260,-500.0,0.00014246,2]
[334762036,1723537844270,-207.44451776,0.00014246,2]
[334762038,1723537844280,-500.0,0.00014246,2]
[334762040,1723537844289,-500.0,0.00014246,2]
[334762042,1723537844302,-500.0,0.00014246,2]
[334762044,1723537844321,-234.9054217,0.00014246,2]
[334762046,1723537844330,-500.0,0.00014246,2]
[334762048,1723537844340,-508.6193045,0.00014246,2]
[334762050,1723537844349,-500.0,0.00014246,2]
[334762052,1723537844359,-500.0,0.00014246,2]
[334762054,1723537844368,-500.0,0.00014246,2]
[334762056,1723537844379,-500.0,0.00014246,2]
[334762058,1723537844389,-506.86134482,0.00014246,2]
[334762060,1723537844399,-498.4654927,0.00014246,2]
[334762063,1723537844408,-508.57123121,0.00014246,2]
[334762065,1723537844418,-506.22707337,0.00014246,2]
[334762067,1723537844427,-503.55523974,0.00014246,2]
[334762069,1723537844438,-504.30979302,0.00014246,2]
[334762071,1723537844447,-502.58370003,0.00014246,2]
[334762073,1723537844457,-506.75287881,0.00014246,2]
[334762075,1723537844466,-501.67701102,0.00014246,2]
[334762077,1723537844475,-502.05764533,0.00014246,2]
[334762079,1723537844484,-503.70572831,0.00014246,2]
[334762081,1723537844494,-503.10850642,0.00014246,2]
[334762083,1723537844504,-503.91391671,0.00014246,2]
[334762085,1723537844514,-502.92432141,0.00014246,2]
[334762087,1723537844523,-507.01363377,0.00014246,2]
[334762089,1723537844532,-504.68232096,0.00014246,2]
[334762091,1723537844543,-509.01521584,0.00014246,2]
[334762093,1723537844553,-505.7640915,0.00014246,2]
[334762095,1723537844564,-506.03106541,0.00014246,2]
[334762097,1723537844573,-509.51645865,0.00014246,2]
[334762099,1723537844582,-509.38943955,0.00014246,2]
[334762101,1723537844591,-500.0,0.00014246,2]
[334762103,1723537844600,-509.15067271,0.00014246,2]
[334762105,1723537844610,-280.72777545,0.00014246,2]
[334762107,1723537844619,-500.97935078,0.00014246,2]
[334762109,1723537844628,-500.0,0.00014246,2]
[334762111,1723537844637,-504.24664896,0.00014246,2]
[334762113,1723537844646,-501.38606273,0.00014246,2]
[334762115,1723537844656,-607.339072,0.00014246,2]
[334762117,1723537844666,-508.91455768,0.00014246,2]
[334762119,1723537844675,-500.85873997,0.00014246,2]
[334762121,1723537844685,-500.93227216,0.00014246,2]
[334762123,1723537844694,-500.0,0.00014246,2]
[334762125,1723537844703,-500.0,0.00014246,2]
[334762127,1723537844712,-646.2942379,0.00014246,2]
[334762129,1723537844722,-500.45439094,0.00014246,2]
[334762131,1723537844731,-500.33591914,0.00014246,2]
[334762133,1723537844740,-500.0,0.00014246,2]
[334762135,1723537844749,-204.48704954,0.00014246,2]
[334762137,1723537844759,-621.06707316,0.00014246,2]
[334762139,1723537844768,-179.01462629,0.00014246,2]
[334762141,1723537844777,-500.0,0.00014246,2]
[334762143,1723537844787,-501.75196861,0.00014246,2]
[334762145,1723537844796,-562.92028976,0.00014246,2]
[334762147,1723537844805,-500.0,0.00014246,2]
[334762149,1723537844826,-505.6973231,0.00014246,2]
[334762151,1723537844835,-500.0,0.00014246,2]
[334762152,1723537844844,-509.31641425,0.00014246,2]
[334762159,1723537844895,-535.99394621,0.00014246,2]
[334762161,1723537844905,-507.64848782,0.00014246,2]
[334762163,1723537844915,-508.93613018,0.00014246,2]
[334762165,1723537844925,-220.47795823,0.00014246,2]
[334762167,1723537844934,-25781.5835172,0.00014263,3]
[334762169,1723537844944,-12890.7917586,0.00014264,3]
[334762171,1723537844953,-505.64035213,0.00014273,2]
[334762173,1723537844962,-235.5397616,0.00014273,2]
[334762175,1723537844971,-507.71130219,0.00014273,2]
[334762177,1723537844980,-505.77292208,0.00014273,2]
[334762179,1723537844990,-500.0,0.00014273,2]
[334762181,1723537844999,-504.55309219,0.00014273,2]
[334762183,1723537845008,-500.0,0.00014273,2]
[334762185,1723537845018,-499.4253677,0.00014273,2]
[334762187,1723537845027,-502.06748758,0.00014273,2]
[334762189,1723537845036,-530.71147008,0.00014273,2]
[334762191,1723537845045,-498.9268465,0.00014273,2]
[334762193,1723537845054,-502.42616195,0.00014273,2]
[334762195,1723537845064,-527.77655009,0.00014273,2]
[334762197,1723537845073,-500.0,0.00014273,2]
[334762199,1723537845082,-500.0,0.00014273,2]
[334762201,1723537845092,-504.23369882,0.00014273,2]
[334762203,1723537845101,-506.769453,0.00014273,2]
[334762205,1723537845111,-506.36512363,0.00014273,2]
[334762207,1723537845120,-514.69052543,0.00014273,2]
[334762209,1723537845129,-509.4611611,0.00014273,2]
[334762211,1723537845138,-501.34136486,0.00014273,2]
[334762212,1723537845147,-500.0,0.00014273,2]
[334762213,1723537845156,-500.0,0.00014273,2]
[334762215,1723537845165,-500.7612226,0.00014273,2]
[334762218,1723537845179,-500.0,0.00014273,2]
[334762220,1723537845188,-501.03060664,0.00014273,2]
[334762222,1723537845197,-500.0,0.00014273,2]
[334762224,1723537845207,-509.44489471,0.00014273,2]
[334762226,1723537845216,-500.0,0.00014273,2]
[334762228,1723537845225,-501.17619596,0.00014273,2]
[334762230,1723537845234,-500.0,0.00014273,2]
[334762232,1723537845243,-501.11836484,0.00014273,2]
[334762234,1723537845252,-505.79744558,0.00014273,2]
[334762236,1723537845261,-500.0,0.00014273,2]
[334762238,1723537845270,-500.0,0.00014273,2]
[334762240,1723537845279,-509.79761769,0.00014273,2]
[334762242,1723537845288,-512.68029514,0.00014273,2]
[334762244,1723537845300,-504.80427449,0.00014273,2]
[334762246,1723537845310,-500.0,0.00014273,2]
[334762248,1723537845319,-500.0,0.00014273,2]
[334762250,1723537845328,-500.0,0.00014273,2]
[334762252,1723537845337,-503.02488768,0.00014273,2]
[334762253,1723537845348,-501.76618006,0.00014273,2]
[334762255,1723537845357,-501.21246249,0.00014273,2]
[334762257,1723537845366,-535.52070017,0.00014273,2]
[334762259,1723537845377,-524.01956815,0.00014273,2]
[334762261,1723537845386,-501.291168,0.00014273,2]
[334762263,1723537845395,-501.38374971,0.00014273,2]
[334762265,1723537845404,-505.299633,0.00014273,2]
[334762267,1723537845414,-500.0,0.00014273,2]
[334762269,1723537845423,-504.32957825,0.00014273,2]
[334762271,1723537845432,-501.09386982,0.00014273,2]
[334762273,1723537845441,-503.07317969,0.00014273,2]
[334762275,1723537845450,-500.0,0.00014273,2]
[334762277,1723537845460,-501.17555582,0.00014273,2]
[334762279,1723537845469,-538.89844419,0.00014273,2]
[334762281,1723537845478,-500.81807146,0.00014273,2]
[334762283,1723537845487,-500.0,0.00014273,2]
[334762284,1723537845496,-500.99262564,0.00014273,2]
[334762286,1723537845505,-500.0,0.00014273,2]
[334762288,1723537845514,-501.25994591,0.00014273,2]
[334762290,1723537845523,-529.77304809,0.00014273,2]
[334762292,1723537845533,-582.10913108,0.00014273,2]
[334762294,1723537845542,-500.0,0.00014273,2]
[334762296,1723537845551,-507.07766632,0.00014273,2]
[334762298,1723537845564,-500.98491095,0.00014273,2]
[334762300,1723537845573,-500.0,0.00014273,2]
[334762302,1723537845583,-503.36569155,0.00014273,2]
[334762304,1723537845594,-513.6064279,0.00014273,2]
[334762306,1723537845604,-500.0,0.00014273,2]
[334762308,1723537845614,-500.0,0.00014273,2]
[334762310,1723537845623,-498.4484932,0.00014273,2]
[334762312,1723537845633,-500.0,0.00014273,2]
[334762314,1723537845643,-507.50181071,0.00014273,2]
[334762316,1723537845652,-502.2146959,0.00014273,2]
[334762318,1723537845661,-506.02730097,0.00014273,2]
[334762320,1723537845670,-500.91390626,0.00014273,2]
[334762322,1723537845679,-510.81647606,0.00014273,2]
[334762324,1723537845689,-576.48130221,0.00014273,2]
[334762326,1723537845698,-507.75578829,0.00014273,2]
[334762328,1723537845707,-500.0,0.00014273,2]
[334762330,1723537845716,-509.00251969,0.00014273,2]
[334762332,1723537845725,-500.0,0.00014273,2]
[334762334,1723537845736,-507.61130495,0.00014273,2]
[334762336,1723537845745,-507.43075738,0.00014273,2]
[334762338,1723537845754,-523.28172444,0.00014273,2]
[334762340,1723537845763,-570.21134188,0.00014273,2]
[334762342,1723537845772,-500.0,0.00014273,2]
[334762344,1723537845781,-501.18842457,0.00014273,2]
[334762345,1723537845791,-508.75071516,0.00014273,2]
[334762347,1723537845800,-507.56670689,0.00014273,2]
[334762350,1723537845811,-500.0,0.00014273,2]
[334762351,1723537845820,-500.0,0.00014273,2]
[334762353,1723537845829,-519.66399888,0.00014273,2]
[334762355,1723537845838,-505.17076243,0.00014273,2]
[334762357,1723537845847,-500.0,0.00014273,2]
[334762359,1723537845857,-504.01093389,0.00014273,2]
[334762361,1723537845866,-504.48194189,0.00014273,2]
[334762363,1723537845875,-505.39382648,0.00014273,2]
[334762365,1723537845884,-506.1801914,0.00014273,2]
[334762367,1723537845893,-497.89139158,0.00014273,2]
[334762369,1723537845903,-509.30347104,0.00014273,2]
[334762371,1723537845912,-508.46682391,0.00014273,2]
[334762373,1723537845922,-525.06253956,0.00014273,2]
[334762375,1723537845931,-500.0,0.00014273,2]
[334762377,1723537845940,-500.0,0.00014273,2]
[334762379,1723537845949,-500.0,0.00014273,2]
[334762381,1723537845958,-500.0,0.00014273,2]
[334762383,1723537845968,-500.0,0.00014273,2]
[334762385,1723537845978,-500.0,0.00014273,2]
[334762387,1723537845987,-500.0,0.00014273,2]
[334762389,1723537845996,-604.44874016,0.00014273,2]
[334762391,1723537846005,-500.0,0.00014273,2]
[334762393,1723537846014,-500.0,0.00014273,2]
[334762395,1723537846023,-500.0,0.00014273,2]
[334762397,1723537846032,-500.0,0.00014273,2]
[334762399,1723537846042,-500.0,0.00014273,2]
[334762401,1723537846051,-500.0,0.00014273,2]
[334762403,1723537846061,-500.0,0.00014273,2]
[334762405,1723537846071,-408.26434312,0.00014273,2]
[334762408,1723537846080,-513.95265906,0.00014273,2]
[334762411,1723537846089,-521.97239324,0.00014273,2]
[334762413,1723537846098,-498.58316104,0.00014273,2]
[334762415,1723537846107,-500.0,0.00014273,2]
[334762417,1723537846117,-498.67389144,0.00014273,2]
[334762419,1723537846126,-500.0,0.00014273,2]
[334762421,1723537846135,-511.15517187,0.00014273,2]
[334762423,1723537846145,-501.61674871,0.00014273,2]
[334762425,1723537846154,-500.0,0.00014273,2]
[334762427,1723537846163,-592.97646182,0.00014273,2]
[334762429,1723537846172,-515.92628918,0.00014273,2]
[334762431,1723537846181,-520.24,0.00014273,2]
[334762433,1723537846190,-581.31248966,0.00014273,2]
[334762435,1723537846199,-500.0,0.00014273,2]
[334762437,1723537846207,-485.19996127,0.00014273,2]
[334762438,1723537846216,-500.0,0.00014273,2]
[334762440,1723537846224,-500.0,0.00014273,2]
[334762442,1723537846233,-514.27325043,0.00014273,2]
[334762444,1723537846243,-500.0,0.00014273,2]
[334762446,1723537846252,-509.15341514,0.00014273,2]
[334762448,1723537846261,-510.19109708,0.00014273,2]
[334762450,1723537846270,-505.36351789,0.00014273,2]
[334762452,1723537846279,-500.0,0.00014273,2]
[334762453,1723537846288,-498.87681583,0.00014273,2]
[334762455,1723537846300,-500.0,0.00014273,2]
[334762457,1723537846310,-500.0,0.00014273,2]
[334762459,1723537846319,-500.0,0.00014273,2]
[334762461,1723537846328,-500.0,0.00014273,2]
[334762463,1723537846338,-500.0,0.00014273,2]
[334762465,1723537846347,-500.0,0.00014273,2]
[334762467,1723537846357,-500.0,0.00014273,2]